bitfinex/quotes_BTCUSD_20240902
["timestamp","ask_amount","ask_price","bid_price","bid_amount"]
[1725267962036,0.36091,58186.0,58185.0,0.066]
[1725267964312,0.120301,58188.0,58185.0,0.066]
[1725267964537,0.120303,58186.0,58185.0,0.066]
[1725267964975,0.36091,58186.0,58185.0,0.066]
[1725267965877,0.120303,58186.0,58185.0,0.066]
[1725267966339,0.36091,58186.0,58185.0,0.066]
[1725267966805,0.0195,58203.0,58185.0,0.066]
[1725267967026,0.120302,58187.0,58185.0,0.066]
[1725267967239,0.1200448,58187.0,58185.0,0.066]
[1725267968130,0.360895,58189.0,58185.0,0.066]
[1725267968344,0.360895,58189.0,58186.0,0.0868]
[1725267968561,0.240585,58192.0,58187.0,0.0699]
[1725267968797,0.240585,58192.0,58188.0,0.0868]
[1725267968798,0.120296,58190.0,58188.0,0.0868]
[1725267969073,0.240577,58194.0,58188.0,0.0868]
[1725267969372,0.120292,58192.0,58189.0,0.0635]
[1725267969597,0.240564,58197.0,58190.0,0.0891]
[1725267969849,0.240564,58197.0,58191.0,0.0635]
[1725267969850,0.120286,58195.0,58191.0,0.0635]
[1725267970089,0.120288,58194.0,58191.0,0.0635]
[1725267970846,0.240564,58197.0,58191.0,0.0635]
[1725267971103,0.120287,58195.0,58191.0,0.0635]
[1725267971337,0.120282,58197.0,58193.0,0.0671]
[1725267971866,0.240526,58206.0,58193.0,0.0671]
[1725267971867,0.240518,58208.0,58193.0,0.0671]
[1725267972093,0.120275,58200.0,58195.0,0.0647]
[1725267972564,0.120277,58199.0,58195.0,0.0647]
[1725267972802,0.120276,58200.0,58196.0,0.0879]
[1725267973041,0.240518,58208.0,58190.0,0.24059]
[1725267973042,0.120267,58204.0,58200.0,0.0647]
[1725267973290,0.47,58213.0,58190.0,0.24059]
[1725267973291,0.24051,58210.0,58201.0,0.0879]
[1725267973527,0.120265,58205.0,58202.0,0.0647]
[1725267973994,0.120261,58207.0,58202.0,0.0647]
[1725267974238,0.120255,58210.0,58204.0,0.120264]
[1725267974511,0.47,58213.0,58202.0,0.0647]
[1725267974512,0.120256,58209.0,58202.0,0.184969]
[1725267974751,0.120256,58209.0,58203.0,0.120267]
[1725267975522,0.02575038,58215.0,58203.0,0.120267]
[1725267975523,0.240473,58219.0,58207.0,0.1526]
[1725267975798,0.47,58223.0,58212.0,0.0879]
[1725267976019,0.47,58223.0,58213.0,0.0669]
[1725267976020,0.12024,58217.0,58213.0,0.0669]
[1725267976271,0.47,58223.0,58213.0,0.0669]
[1725267976272,0.240477,58218.0,58213.0,0.0669]
[1725267976499,0.120245,58214.0,58213.0,0.0669]
[1725267976744,0.710457,58223.0,58213.0,0.0669]
[1725267976990,0.120236,58219.0,58213.0,0.0669]
[1725267977225,0.02556931,58229.0,58215.0,0.120243]
[1725267977226,0.240447,58225.0,58215.0,0.120243]
[1725267977488,0.240447,58225.0,58218.0,0.120237]
[1725267977732,0.120226,58224.0,58218.0,0.120237]
[1725267978197,0.002,58231.0,58216.0,0.1469]
[1725267978762,0.120236,58219.0,58216.0,0.1469]
[1725267978766,0.05142035,58257.0,58247.0,0.005]
[1725267979028,0.12855089,58266.0,58233.0,0.240411]
[1725267979029,0.50540786,58259.0,58251.0,0.0802]
[1725267979271,0.240257,58271.0,58251.0,0.0802]
[1725267979272,0.240291,58263.0,58251.0,0.0802]
[1725267979511,0.240245,58274.0,58252.0,0.00343313]
[1725267979778,0.0154,58280.0,58252.0,0.00343313]
[1725267980043,0.120137,58267.0,58259.0,0.120151]
[1725267980305,0.120133,58269.0,58260.0,0.120149]
[1725267980604,0.005,58278.0,58261.0,0.0863]
[1725267980826,0.120151,58260.0,58259.0,0.066]
[1725267981066,0.360453,58260.0,58259.0,0.066]
[1725267981303,0.120156,58258.0,58256.0,0.0868]
[1725267981540,0.120157,58257.0,58256.0,0.0868]
[1725267981779,0.240302,58260.0,58256.0,0.0868]
[1725267982258,0.002,58274.0,58256.0,0.0868]
[1725267982511,0.120156,58258.0,58256.0,0.0868]
[1725267982999,0.120157,58257.0,58256.0,0.0868]
[1725267983521,0.242273,58267.0,58256.0,0.0868]
[1725267983786,0.120157,58257.0,58256.0,0.0868]
[1725267984299,0.005,58276.0,58256.0,0.0868]
[1725267984300,0.002,58290.0,58265.0,0.240278]
[1725267984561,0.240206,58284.0,58275.0,0.0629]
[1725267984782,0.12011,58280.0,58275.0,0.0629]
[1725267984995,0.03395526,58295.0,58275.0,0.0629]
[1725267984996,0.120118,58276.0,58275.0,0.0629]
[1725267985467,0.002,58289.0,58275.0,0.0629]
[1725267985468,0.120111,58279.0,58275.0,0.0629]
[1725267985680,0.002,58289.0,58275.0,0.0629]
[1725267985681,0.120115,58278.0,58275.0,0.0629]
[1725267985898,0.120117,58277.0,58275.0,0.0629]
[1725267986328,0.120118,58276.0,58275.0,0.0629]
[1725267987267,0.120114,58278.0,58275.0,0.0629]
[1725267987478,0.120114,58278.0,58276.0,0.088]
[1725267987929,0.120108,58281.0,58276.0,0.088]
[1725267988141,0.240208,58283.0,58276.0,0.088]
[1725267988381,0.240186,58288.0,58276.0,0.088]
[1725267988382,0.240186,58288.0,58276.0,0.09143196]
[1725267988608,0.240185,58289.0,58276.0,0.088]
[1725267988831,0.120099,58286.0,58278.0,0.120113]
[1725267989048,0.120099,58285.0,58276.0,0.208117]
[1725267989276,0.002,58304.0,58286.0,0.0683]
[1725267989546,0.002,58304.0,58283.0,0.50540786]
[1725267989547,0.02476911,58318.0,58300.0,0.0887]
[1725267989751,0.002,58320.0,58300.0,0.0887]
[1725267989974,0.120066,58301.0,58300.0,0.0887]
[1725267990183,0.360199,58301.0,58300.0,0.0887]
[1725267992541,0.120066,58301.0,58300.0,0.0887]
[1725267992952,0.120048,58310.0,58302.0,0.120063]
[1725267993161,0.120048,58310.0,58300.0,0.0887]
[1725267993162,0.120048,58310.0,58303.0,0.1234909]
[1725267993383,0.120046,58311.0,58303.0,0.1234909]
[1725267993818,0.120046,58311.0,58304.0,0.12006]
[1725267994027,0.120046,58311.0,58305.0,0.00342988]
[1725267994449,0.120046,58311.0,58306.0,0.1562]
[1725267994919,0.240067,58317.0,58306.0,0.1562]
[1725267995140,0.120044,58312.0,58306.0,0.1562]
[1725267995353,0.240075,58315.0,58306.0,0.1562]
[1725267995796,0.0004,58319.0,58306.0,0.1562]
[1725267996067,0.360162,58307.0,58306.0,0.1562]
[1725267996928,0.60027,58307.0,58306.0,0.1562]
[1725267998030,0.360162,58307.0,58306.0,0.1562]
[1725267998908,0.240084,58313.0,58306.0,0.1562]
[1725267999331,0.120046,58311.0,58306.0,0.1562]
[1725267999552,0.12005,58309.0,58306.0,0.1562]
[1725267999768,0.120052,58308.0,58306.0,0.1562]
[1725268000660,0.0004,58319.0,58306.0,0.1562]
[1725268000870,0.360162,58307.0,58306.0,0.1562]
[1725268001544,0.120067,58301.0,58300.0,0.0673]
[1725268001764,0.11975699,58301.0,58300.0,0.0673]
[1725268001983,0.35988999,58301.0,58300.0,0.0673]
[1725268002221,0.35988999,58301.0,58300.0,0.1486]
[1725268002959,0.242072,58316.0,58296.0,0.0655]
[1725268002960,0.600372,58297.0,58296.0,0.0655]
[1725268003178,0.240158,58295.0,58290.0,0.0786]
[1725268003395,0.120087,58291.0,58290.0,0.0786]
[1725268003631,0.120083,58293.0,58290.0,0.0786]
[1725268003893,0.120072,58299.0,58290.0,0.0786]
[1725268004109,0.120073,58298.0,58292.0,0.0807]
[1725268004368,0.120069,58300.0,58293.0,0.120082]
[1725268004619,0.12007,58299.0,58292.0,0.200783]
[1725268005063,0.120074,58297.0,58292.0,0.0807]
[1725268006374,0.240144,58299.0,58292.0,0.0807]
[1725268006609,0.120079,58295.0,58292.0,0.0807]
[1725268008147,0.360249,58293.0,58292.0,0.0807]
[1725268008385,0.359749,58293.0,58292.0,0.0807]
[1725268008629,0.599915,58293.0,58292.0,0.0807]
[1725268008864,0.359749,58293.0,58292.0,0.0807]
[1725268016338,0.24014,58300.0,58288.0,0.0814]
[1725268016540,0.360273,58289.0,58288.0,0.1814]
[1725268016749,0.120091,58289.0,58288.0,0.1814]
[1725268016984,0.120088,58291.0,58288.0,0.1814]
[1725268017404,0.120086,58292.0,58288.0,0.1814]
[1725268017628,0.120077,58296.0,58291.0,0.120085]
[1725268017835,0.120077,58296.0,58292.0,0.082]
[1725268018313,0.0242472,58315.0,58292.0,0.08543077]
[1725268018531,0.240064,58318.0,58297.0,0.0787]
[1725268018744,0.0004,58319.0,58298.0,0.00343008]
[1725268018745,0.240089,58312.0,58298.0,0.00343008]
[1725268019014,0.240089,58312.0,58302.0,0.120063]
[1725268019207,0.120053,58308.0,58302.0,0.120063]
[1725268019444,0.120053,58308.0,58301.0,0.00343008]
[1725268019445,0.120053,58308.0,58303.0,0.120062]
[1725268019693,0.240082,58314.0,58302.0,0.240128]
[1725268019906,0.120046,58311.0,58305.0,0.120057]
[1725268020112,0.120044,58312.0,58307.0,0.0685]
[1725268020319,0.120042,58313.0,58308.0,0.202551]
[1725268020521,0.120041,58314.0,58308.0,0.202551]
[1725268020737,0.240076,58315.0,58308.0,0.202551]
[1725268020738,0.120034,58317.0,58312.0,0.120042]
[1725268021603,0.120034,58317.0,58310.0,0.120046]
[1725268021840,0.120034,58317.0,58311.0,0.120045]
[1725268022059,0.240063,58318.0,58311.0,0.120045]
[1725268022301,0.240063,58318.0,58308.0,0.0825]
[1725268022302,0.240067,58317.0,58308.0,0.0825]
[1725268022538,0.240073,58316.0,58308.0,0.202551]
[1725268022750,0.0004,58319.0,58308.0,0.0825]
[1725268022948,0.0004,58319.0,58307.0,0.308604]
[1725268022949,0.0004,58319.0,58314.0,0.120039]
[1725268023207,0.0004,58319.0,58310.0,0.324493]
[1725268023208,0.120032,58318.0,58310.0,0.324493]
[1725268023411,0.12043,58319.0,58313.0,0.12004]
[1725268023831,0.0004,58319.0,58313.0,0.240083]
[1725268024040,0.120429,58319.0,58314.0,0.185239]
[1725268024245,0.0004,58319.0,58317.0,0.05084408]
[1725268024692,0.12043,58319.0,58317.0,0.05084408]
[1725268025969,0.0004,58319.0,58317.0,0.05084408]
[1725268026396,0.0004,58319.0,58316.0,0.17087908]
[1725268026834,0.0004,58319.0,58317.0,0.17087708]
[1725268027052,0.0004,58319.0,58318.0,0.05084408]
[1725268027682,0.0004,58319.0,58317.0,0.05084408]
[1725268027897,0.0004,58319.0,58318.0,0.0843]
[1725268028517,0.0004,58319.0,58318.0,0.204331]
[1725268028727,0.0004,58319.0,58318.0,0.13538832]
[1725268028965,0.120429,58319.0,58318.0,0.0843]
[1725268029198,0.0004,58319.0,58318.0,0.0843]
[1725268029430,0.120035,58316.0,58315.0,0.05108832]
[1725268029688,0.360144,58310.0,58309.0,0.05108832]
[1725268029881,0.0004,58319.0,58304.0,0.168]
[1725268029882,0.2401,58309.0,58308.0,0.05112381]
[1725268030200,0.0004,58319.0,58306.0,0.05112381]
[1725268030201,0.240089,58312.0,58306.0,0.05112381]
[1725268030387,0.120053,58308.0,58307.0,0.05112381]
[1725268031028,0.360157,58308.0,58307.0,0.05112381]
[1725268031214,0.600261,58308.0,58307.0,0.05112381]
[1725268031438,0.120058,58305.0,58304.0,0.068]
[1725268031653,0.242073,58316.0,58301.0,0.05112381]
[1725268031857,0.120066,58301.0,58300.0,0.05116123]
[1725268032066,0.120068,58300.0,58299.0,0.0839]
[1725268032290,0.360205,58300.0,58299.0,0.0839]
[1725268033123,0.360211,58299.0,58298.0,0.068]
[1725268033785,0.120076,58296.0,58295.0,0.14016239]
[1725268034038,0.120076,58296.0,58295.0,0.089]
[1725268034268,0.120076,58296.0,58295.0,0.189]
[1725268034937,0.360229,58296.0,58295.0,0.189]
[1725268035357,0.360229,58296.0,58295.0,0.089]
[1725268035561,0.120076,58296.0,58295.0,0.089]
[1725268036043,0.360229,58296.0,58295.0,0.089]
[1725268036468,0.120076,58296.0,58295.0,0.089]
[1725268040341,0.360229,58296.0,58295.0,0.089]
[1725268040554,0.120076,58296.0,58295.0,0.089]
[1725268046052,0.240143,58299.0,58295.0,0.089]
[1725268046053,0.120074,58298.0,58295.0,0.089]
[1725268046497,0.120046,58311.0,58306.0,0.120055]
[1725268046712,0.120046,58311.0,58296.0,0.57490786]
[1725268046713,0.7841,58318.0,58307.0,0.15762994]
[1725268046931,0.7841,58318.0,58311.0,0.120045]
[1725268046932,0.120034,58317.0,58311.0,0.120045]
[1725268047142,0.120035,58316.0,58311.0,0.0847]
[1725268047568,0.904132,58318.0,58311.0,0.0847]
[1725268047782,0.7841,58318.0,58311.0,0.0847]
[1725268047994,0.120037,58315.0,58311.0,0.0847]
[1725268048271,0.0004,58319.0,58311.0,0.0847]
[1725268048272,0.10249876,58319.0,58313.0,0.12004]
[1725268048537,0.09180557,58319.0,58313.0,0.120041]
[1725268049007,0.47,58322.0,58316.0,0.120034]
[1725268049008,0.120023,58322.0,58316.0,0.120034]
[1725268049441,0.120023,58322.0,58316.0,0.120035]
[1725268049659,0.240031,58326.0,58319.0,0.120029]
[1725268049900,0.120021,58323.0,58318.0,0.0724]
[1725268050123,0.240068,58317.0,58312.0,0.0706]
[1725268050350,0.02730197,58334.0,58312.0,0.0706]
[1725268050613,0.12007,58299.0,58298.0,0.0706]
[1725268050850,0.360211,58299.0,58298.0,0.0706]
[1725268051064,0.002,58314.0,58293.0,0.0835]
[1725268051065,0.240092,58311.0,58293.0,0.0835]
[1725268051309,0.12008,58294.0,58293.0,0.0835]
[1725268051538,0.120077,58296.0,58293.0,0.0835]
[1725268051972,0.120079,58295.0,58293.0,0.0835]
[1725268052187,0.12008,58294.0,58293.0,0.0835]
[1725268052400,0.120077,58296.0,58293.0,0.0835]
[1725268052604,0.120079,58295.0,58293.0,0.0835]
[1725268053227,0.12008,58294.0,58293.0,0.0835]
[1725268053441,0.360255,58292.0,58291.0,0.0664]
[1725268054104,0.120085,58292.0,58291.0,0.0664]
[1725268055832,0.240154,58296.0,58291.0,0.0664]
[1725268056035,0.0482313,58308.0,58291.0,0.0664]
[1725268056036,0.02180118,58308.0,58291.0,0.0664]
[1725268056305,0.120078,58296.0,58291.0,0.0664]
[1725268056506,0.120079,58295.0,58291.0,0.0664]
[1725268056716,0.120081,58294.0,58291.0,0.0664]
[1725268057138,0.240139,58300.0,58291.0,0.0664]
[1725268057347,0.240141,58299.0,58287.0,0.0654]
[1725268057574,0.240173,58292.0,58287.0,0.1654]
[1725268057982,0.120088,58291.0,58287.0,0.1654]
[1725268058193,0.240162,58294.0,58287.0,0.285493]
[1725268058402,0.120085,58292.0,58287.0,0.285493]
[1725268058615,0.120088,58291.0,58287.0,0.1654]
[1725268059040,0.120085,58292.0,58287.0,0.285494]
[1725268059669,0.240147,58298.0,58288.0,0.240186]
[1725268059880,0.120075,58297.0,58292.0,0.120084]
[1725268060131,0.120075,58297.0,58293.0,0.0906]
[1725268060554,0.000816,58296.0,58294.0,0.120079]
[1725268060987,0.000816,58296.0,58295.0,0.206378]
[1725268061208,0.000816,58296.0,58295.0,0.274778]
[1725268061507,0.000816,58296.0,58295.0,0.1547]
[1725268062640,0.000816,58296.0,58291.0,0.240171]
[1725268062641,0.12008,58295.0,58291.0,0.1509]
[1725268062864,0.000816,58296.0,58291.0,0.1509]
[1725268063073,0.000816,58296.0,58295.0,0.120078]
[1725268063287,0.000816,58296.0,58295.0,0.13910209]
[1725268063943,0.000816,58296.0,58295.0,0.120078]
[1725268064167,0.000816,58296.0,58293.0,0.120081]
[1725268064382,0.120083,58293.0,58292.0,0.1854]
[1725268064606,0.120085,58292.0,58291.0,0.0633]
[1725268064832,0.120085,58292.0,58288.0,0.0879]
[1725268064833,0.120091,58289.0,58288.0,0.0879]
[1725268065309,0.120093,58288.0,58283.0,0.0879]
[1725268065519,0.360279,58288.0,58279.0,0.1545]
[1725268065740,0.600465,58288.0,58279.0,0.1545]
[1725268066833,0.600465,58288.0,58280.0,0.1]
[1725268067492,0.360279,58288.0,58280.0,0.1]
[1725268067709,0.360279,58288.0,58279.0,0.28671]
[1725268068190,0.360279,58288.0,58280.0,0.01902281]
[1725268068409,0.120093,58288.0,58287.0,0.0897976]
[1725268069339,0.120091,58289.0,58287.0,0.0897976]
[1725268070008,0.120085,58292.0,58287.0,0.0897976]
[1725268070299,0.000816,58296.0,58288.0,0.0681]
[1725268070300,0.240163,58294.0,58288.0,0.0681]
[1725268070577,0.120086,58292.0,58288.0,0.0681]
[1725268071053,0.120082,58294.0,58288.0,0.0681]
[1725268071297,0.000816,58296.0,58290.0,0.120088]
[1725268071542,0.120081,58294.0,58290.0,0.120088]
[1725268071819,0.120893,58296.0,58290.0,0.120088]
[1725268072041,0.120893,58296.0,58288.0,0.0681]
[1725268072042,0.000816,58296.0,58288.0,0.0681]
[1725268072284,0.000816,58296.0,58290.0,0.240177]
[1725268072526,0.000816,58296.0,58292.0,0.120083]
[1725268072764,0.120893,58296.0,58290.0,0.240177]
[1725268073000,0.000816,58296.0,58289.0,0.120089]
[1725268073227,0.000816,58296.0,58291.0,0.120086]
[1725268073969,0.120079,58295.0,58291.0,0.120086]
[1725268074958,0.120079,58295.0,58288.0,0.0689976]
[1725268075196,0.120079,58295.0,58289.0,0.240181]
[1725268075406,0.000816,58296.0,58292.0,0.202284]
[1725268075617,0.120893,58296.0,58292.0,0.202284]
[1725268076761,0.000816,58296.0,58292.0,0.202284]
[1725268076990,0.000816,58296.0,58295.0,0.120078]
[1725268077248,0.000816,58296.0,58292.0,0.322369]
[1725268077510,0.000816,58296.0,58295.0,0.120078]
[1725268077707,0.000816,58296.0,58295.0,0.360235]
[1725268078002,0.000816,58296.0,58295.0,0.424035]
[1725268078811,0.000816,58296.0,58295.0,1.35352845]
[1725268079351,0.000816,58319.0,58302.0,0.720384]
[1725268079563,0.000816,58319.0,58316.0,0.278234]
[1725268080984,0.000816,58319.0,58316.0,0.1582]
[1725268081455,0.000816,58319.0,58316.0,0.278235]
[1725268081704,0.000816,58319.0,58317.0,0.120032]
[1725268082447,0.000816,58319.0,58318.0,0.120031]
[1725268082899,0.000816,58319.0,58316.0,0.278235]
[1725268083171,0.000816,58319.0,58318.0,0.120031]
[1725268084141,0.000816,58319.0,58316.0,0.1582]
[1725268085538,0.000816,58319.0,58317.0,0.120031]
[1725268085826,0.000816,58319.0,58316.0,0.1582]
[1725268085827,0.000816,58319.0,58318.0,0.120031]
[1725268086940,0.000816,58319.0,58316.0,0.1582]
[1725268087133,0.600167,58317.0,58316.0,0.0698]
[1725268087424,0.5999098,58317.0,58316.0,0.0698]
[1725268087634,0.000816,58319.0,58301.0,0.50540786]
[1725268087853,0.120058,58305.0,58302.0,0.0668]
[1725268088313,0.120062,58303.0,58302.0,0.0668]
[1725268089230,0.120076,58297.0,58296.0,0.0845]
[1725268089406,0.120071,58299.0,58296.0,0.0845]
[1725268089646,0.120071,58299.0,58296.0,0.1845]
[1725268089856,0.120068,58301.0,58296.0,0.1845]
[1725268090069,0.240123,58304.0,58296.0,0.1845]
[1725268090285,0.240129,58302.0,58296.0,0.1845]
[1725268090700,0.120068,58300.0,58296.0,0.1845]
[1725268091141,0.49056048,58315.0,58309.0,0.120049]
[1725268091142,0.12004,58314.0,58309.0,0.120049]
[1725268091357,0.120043,58313.0,58310.0,0.0801]
[1725268092224,0.590039,58315.0,58311.0,0.0648]
[1725268092436,0.12004,58314.0,58311.0,0.0648]
[1725268092653,0.120037,58315.0,58311.0,0.184845]
[1725268092868,0.120037,58315.0,58311.0,0.0648]
[1725268093091,0.240067,58317.0,58311.0,0.184845]
[1725268093307,0.120037,58316.0,58311.0,0.184845]
[1725268093592,0.120038,58315.0,58311.0,0.184845]
[1725268093802,0.120038,58315.0,58311.0,0.0648]
[1725268093983,0.240067,58317.0,58311.0,0.184844]
[1725268094198,0.120037,58316.0,58311.0,0.184844]
[1725268094649,0.240057,58320.0,58313.0,0.120039]
[1725268094864,0.120023,58322.0,58311.0,0.0648]
[1725268095074,0.240045,58323.0,58311.0,0.0648]
[1725268095075,0.120026,58321.0,58314.0,0.240078]
[1725268095517,0.240045,58323.0,58312.0,0.240087]
[1725268095735,0.120846,58319.0,58314.0,0.120039]
[1725268096189,0.000816,58319.0,58311.0,0.0648]
[1725268096619,0.120033,58317.0,58312.0,0.120043]
[1725268097049,0.120035,58316.0,58312.0,0.120043]
[1725268097509,0.000816,58319.0,58311.0,0.0648]
[1725268097510,0.120038,58315.0,58311.0,0.0648]
[1725268097734,0.120034,58317.0,58311.0,0.184844]
[1725268098600,0.120034,58317.0,58312.0,0.120043]
[1725268099253,0.120038,58315.0,58311.0,0.0648]
[1725268099505,0.120038,58315.0,58312.0,0.0613]
[1725268100341,0.120041,58313.0,58312.0,0.0613]
[1725268100822,0.120048,58310.0,58309.0,0.1]
[1725268101470,0.000816,58319.0,58303.0,0.1451]
[1725268101686,0.12006,58304.0,58303.0,0.1451]
[1725268101899,0.120048,58310.0,58305.0,0.120056]
[1725268102127,0.120048,58310.0,58306.0,0.120055]
[1725268102404,0.240079,58315.0,58306.0,0.120055]
[1725268102581,0.120046,58311.0,58306.0,0.120055]
[1725268103555,0.120048,58310.0,58304.0,0.120059]
[1725268103782,0.47,58317.0,58305.0,0.00343012]
[1725268104008,0.000816,58319.0,58317.0,0.0798]
[1725268104218,0.120032,58318.0,58317.0,0.0798]
[1725268104433,0.120845,58319.0,58317.0,0.0798]
[1725268106305,0.000816,58319.0,58317.0,0.0798]
[1725268106701,0.000816,58319.0,58317.0,0.199832]
[1725268107263,0.000816,58319.0,58318.0,0.120031]
[1725268109501,0.000816,58319.0,58318.0,0.360094]
[1725268109762,0.000816,58319.0,58318.0,0.600157]
[1725268110913,0.000816,58319.0,58318.0,0.750157]
[1725268111121,0.000816,58319.0,58318.0,1.09022]
[1725268113014,0.120005,58331.0,58326.0,0.120014]
[1725268113234,0.120005,58331.0,58322.0,0.00342888]
[1725268113455,0.120002,58333.0,58328.0,0.12001]
[1725268113883,0.239989,58336.0,58328.0,0.12001]
[1725268113884,0.120002,58332.0,58328.0,0.12001]
[1725268114108,0.120005,58331.0,58323.0,0.240042]
[1725268114309,0.120005,58331.0,58321.0,0.1438]
[1725268114310,0.239989,58336.0,58327.0,0.120011]
[1725268114529,0.240002,58333.0,58322.0,0.240045]
[1725268114739,0.12001,58329.0,58321.0,0.383847]
[1725268114952,0.12001,58329.0,58323.0,0.24004]
[1725268115420,0.240002,58333.0,58323.0,0.24004]
[1725268115633,0.240002,58333.0,58325.0,0.120016]
[1725268115634,0.120009,58329.0,58325.0,0.120016]
[1725268116273,0.239998,58334.0,58321.0,0.263823]
[1725268116491,0.120013,58327.0,58322.0,0.120022]
[1725268116923,0.12001,58329.0,58322.0,0.120022]
[1725268117357,0.12001,58329.0,58323.0,0.120021]
[1725268117591,0.120014,58327.0,58322.0,0.120023]
[1725268118679,0.240021,58329.0,58321.0,0.1438]
[1725268118904,0.120019,58324.0,58321.0,0.1438]
[1725268119169,0.240032,58326.0,58321.0,0.1438]
[1725268119638,0.01,58337.0,58313.0,0.0827]
[1725268119862,0.01,58337.0,58296.0,0.12875504]
[1725268119863,0.120043,58312.0,58303.0,0.50540786]
[1725268120088,0.600217,58312.0,58303.0,0.50540786]
[1725268120524,0.840304,58312.0,58298.0,0.15]
[1725268120716,0.600217,58312.0,58299.0,0.50540786]
[1725268120965,0.840304,58312.0,58299.0,0.50540786]
[1725268122705,0.600217,58312.0,58299.0,0.62547786]
[1725268125143,0.600217,58312.0,58299.0,0.50540786]
[1725268126607,0.840304,58312.0,58299.0,0.50540786]
[1725268126832,0.600217,58312.0,58299.0,0.50540786]
[1725268128584,0.840304,58312.0,58299.0,0.50540786]
[1725268128824,0.600217,58312.0,58299.0,0.50540786]
[1725268129046,0.840304,58312.0,58299.0,0.50540786]
[1725268130841,0.840304,58312.0,58298.0,0.15]
[1725268134250,0.840304,58312.0,58298.0,0.0673]
[1725268134448,0.840304,58312.0,58308.0,0.0761]
[1725268134873,0.840304,58312.0,58304.0,0.0761]
[1725268137725,0.840304,58312.0,58310.0,0.0651]
[1725268137944,0.600217,58312.0,58310.0,0.0651]
[1725268138489,0.840304,58312.0,58305.0,0.0651]
[1725268139255,0.840304,58312.0,58301.0,0.0765]
[1725268139477,0.840304,58312.0,58301.0,0.1433]
[1725268140565,0.842304,58312.0,58301.0,0.1433]
[1725268141244,0.962348,58312.0,58301.0,0.1433]
[1725268141467,0.360223,58297.0,58296.0,0.0008976]
[1725268141688,0.600372,58297.0,58296.0,0.50630546]
[1725268141939,0.600402,58294.0,58293.0,0.0008976]
[1725268142192,0.840563,58294.0,58293.0,0.0008976]
[1725268144624,0.840637,58289.0,58287.0,0.0008976]
[1725268144878,0.24019,58287.0,58286.0,0.0632]
[1725268145105,0.840665,58287.0,58286.0,0.0632]
[1725268145332,0.840665,58287.0,58281.0,0.083]
[1725268145333,0.120127,58272.0,58266.0,0.120136]
[1725268145549,0.120133,58269.0,58264.0,0.120142]
[1725268145770,0.120133,58269.0,58265.0,0.08]
[1725268146013,0.120138,58267.0,58265.0,0.08]
[1725268146305,0.480505,58272.0,58265.0,0.08]
[1725268146545,0.0593,58284.0,58265.0,0.08]
[1725268146546,0.120138,58266.0,58265.0,0.08]
[1725268147241,0.360415,58266.0,58265.0,0.08]
[1725268147473,0.3601578,58266.0,58265.0,0.08]
[1725268148132,0.3601578,58266.0,58265.0,0.0808976]
[1725268148994,0.3601578,58266.0,58265.0,0.1445976]
[1725268149205,0.6004348,58266.0,58265.0,0.1445976]
[1725268149436,0.8407118,58266.0,58265.0,0.0008976]
[1725268149891,0.8427118,58266.0,58265.0,0.0008976]
[1725268150424,0.8407118,58266.0,58265.0,0.0008976]
[1725268150686,0.6004348,58266.0,58265.0,0.0008976]
[1725268156119,0.3601578,58266.0,58265.0,0.0008976]
[1725268158027,0.1198808,58266.0,58265.0,0.0008976]
[1725268159677,0.120123,58274.0,58269.0,0.12013]
[1725268159683,0.002,58302.0,58278.0,0.600567]
[1725268159684,0.18470972,58302.0,58278.0,0.600567]
[1725268159923,0.240153,58296.0,58285.0,0.0842]
[1725268160152,0.240153,58296.0,58286.0,0.0604]
[1725268160153,0.120086,58292.0,58286.0,0.0604]
[1725268160399,0.000816,58296.0,58286.0,0.0604]
[1725268160641,0.120893,58296.0,58291.0,0.120086]
[1725268160893,0.120892,58296.0,58290.0,0.120088]
[1725268161344,0.120892,58296.0,58291.0,0.120086]
[1725268161581,0.120892,58296.0,58289.0,0.12009]
[1725268161833,0.120079,58295.0,58289.0,0.12009]
[1725268162306,0.120079,58295.0,58286.0,0.0604]
[1725268162307,0.240973,58296.0,58287.0,0.120094]
[1725268162533,0.120079,58295.0,58289.0,0.120091]
[1725268162774,0.120081,58294.0,58289.0,0.120091]
[1725268162998,0.120079,58295.0,58290.0,0.120089]
[1725268163212,0.000816,58296.0,58288.0,0.120092]
[1725268163213,0.120081,58294.0,58288.0,0.120092]
[1725268163908,0.120081,58294.0,58289.0,0.12009]
[1725268165248,0.0569,58302.0,58289.0,0.12009]
[1725268165466,0.240142,58299.0,58289.0,0.12009]
[1725268165901,0.120081,58294.0,58289.0,0.12009]
[1725268166326,0.240142,58299.0,58286.0,0.0604]
[1725268166327,0.360213,58299.0,58288.0,0.240183]
[1725268166534,0.360213,58299.0,58291.0,0.120087]
[1725268166535,0.120077,58296.0,58291.0,0.120087]
[1725268166970,0.360197,58302.0,58295.0,0.120077]
[1725268167188,0.120067,58301.0,58296.0,0.120075]
[1725268167420,0.120067,58301.0,58294.0,0.24016]
[1725268167421,0.120067,58301.0,58294.0,0.360239]
[1725268167641,0.240126,58303.0,58294.0,0.120079]
[1725268167642,0.1198118,58300.0,58294.0,0.120079]
[1725268168140,0.120068,58301.0,58295.0,0.120078]
[1725268168575,0.240129,58302.0,58293.0,0.182181]
[1725268168798,0.120072,58298.0,58293.0,0.182181]
[1725268169274,0.120075,58297.0,58293.0,0.0621]